[Event "*** Titled Tuesday Blitz"]
[Site "Chess.com"]
[Date "2020.05.05"]
[Round "1"]
[White "vanyakuba"]
[Black "penguingm1"]
[Result "1/2-1/2"]
[WhiteElo "2437"]
[BlackElo "2822"]
[TimeControl "180+1"]
[EndTime "10:10:34 PDT"]
[Termination "Game drawn by agreement"]

1. e4 {[%clk 0:02:58.3]} 1... e5 {[%clk 0:02:59.9]} 2. Nf3 {[%clk 0:02:57.4]}
2... Nc6 {[%clk 0:03:00.2]} 3. Bb5 {[%clk 0:02:57.6]} 3... a6 {[%clk 0:03:00.3]}
4. Ba4 {[%clk 0:02:57.5]} 4... Nf6 {[%clk 0:03:00.7]} 5. d3 {[%clk 0:02:57.9]}
5... d6 {[%clk 0:03:00.8]} 6. c3 {[%clk 0:02:57.8]} 6... g6 {[%clk 0:03:01.3]}
7. h3 {[%clk 0:02:56.2]} 7... Bg7 {[%clk 0:03:01.6]} 8. O-O {[%clk 0:02:56.9]}
8... O-O {[%clk 0:03:01.8]} 9. Re1 {[%clk 0:02:55.8]} 9... b5 {[%clk 0:03:01.1]}
10. Bb3 {[%clk 0:02:54.4]} 10... Na5 {[%clk 0:02:59.7]} 11. Bc2 {[%clk
0:02:54.7]} 11... c5 {[%clk 0:03:00.3]} 12. d4 {[%clk 0:02:55]} 12... exd4
{[%clk 0:02:50.3]} 13. cxd4 {[%clk 0:02:54.5]} 13... cxd4 {[%clk 0:02:50.7]} 14.
Nxd4 {[%clk 0:02:54]} 14... Bb7 {[%clk 0:02:50.6]} 15. Nd2 {[%clk 0:02:25.5]}
15... Re8 {[%clk 0:02:48.4]} 16. b4 {[%clk 0:01:50.9]} 16... Nd5 {[%clk
0:01:36.9]} 17. exd5 {[%clk 0:01:29.2]} 17... Rxe1+ {[%clk 0:01:33.5]} 18. Qxe1
{[%clk 0:01:30.1]} 18... Bxd4 {[%clk 0:01:27.3]} 19. Rb1 {[%clk 0:01:28.6]}
19... Nc4 {[%clk 0:01:27.5]} 20. Nf3 {[%clk 0:01:20.7]} 20... Bg7 {[%clk
0:00:35.1]} 21. Bg5 {[%clk 0:01:19.9]} 21... Qc7 {[%clk 0:00:30.8]} 22. Rd1
{[%clk 0:00:57.3]} 22... h6 {[%clk 0:00:13.2]} 23. Bh4 {[%clk 0:00:49.5]} 23...
Nb2 {[%clk 0:00:11.4]} 24. Rc1 {[%clk 0:00:49.2]} 24... Qd7 {[%clk 0:00:11.3]}
25. Qd2 {[%clk 0:00:34.9]} 25... Nc4 {[%clk 0:00:10]} 26. Qd1 {[%clk 0:00:34.7]}
26... Re8 {[%clk 0:00:09.6]} 27. Bb3 {[%clk 0:00:34.5]} 27... Nb6 {[%clk
0:00:08.7]} 28. Bg3 {[%clk 0:00:32.8]} 28... h5 {[%clk 0:00:07]} 29. Nd4 {[%clk
0:00:22.4]} 29... Nxd5 {[%clk 0:00:06.1]} 30. Nxb5 {[%clk 0:00:19.1]} 30... Nxb4
{[%clk 0:00:02.5]} 31. Nxd6 {[%clk 0:00:17.5]} 31... Re7 {[%clk 0:00:02.9]} 32.
Nxb7 {[%clk 0:00:17.3]} 32... Qxb7 {[%clk 0:00:02.8]} 33. Kh1 {[%clk 0:00:06.7]}
33... Rd7 {[%clk 0:00:03.1]} 34. Qf1 {[%clk 0:00:06.7]} 34... Nd3 {[%clk
0:00:03.2]} 35. Rd1 {[%clk 0:00:07.1]} 35... Nc5 {[%clk 0:00:03.2]} 36. Bc4
{[%clk 0:00:06.6]} 36... a5 {[%clk 0:00:03.1]} 37. Rxd7 {[%clk 0:00:06.1]} 37...
Qxd7 {[%clk 0:00:04]} 38. f3 {[%clk 0:00:05]} 38... a4 {[%clk 0:00:04.1]} 39.
Bf2 {[%clk 0:00:05.2]} 39... Qc6 {[%clk 0:00:04.3]} 40. Qe2 {[%clk 0:00:04.7]}
40... Bf8 {[%clk 0:00:04.1]} 41. g4 {[%clk 0:00:04.9]} 41... hxg4 {[%clk
0:00:03.5]} 42. hxg4 {[%clk 0:00:05.2]} 42... Qf6 {[%clk 0:00:04.1]} 43. Kg2
{[%clk 0:00:05]} 43... Bd6 {[%clk 0:00:04.5]} 44. Qe8+ {[%clk 0:00:03.9]} 44...
Kg7 {[%clk 0:00:04.8]} 45. Qe2 {[%clk 0:00:02.9]} 45... Nd7 {[%clk 0:00:05.1]}
46. Qd3 {[%clk 0:00:02.7]} 46... Ne5 {[%clk 0:00:04.9]} 47. Qe4 {[%clk
0:00:03.1]} 47... Kg8 {[%clk 0:00:04.6]} 48. Bd4 {[%clk 0:00:03]} 48... Qe7
{[%clk 0:00:05]} 49. Bxe5 {[%clk 0:00:03]} 49... Bxe5 {[%clk 0:00:05.5]} 50. f4
{[%clk 0:00:03]} 50... Bd6 {[%clk 0:00:02]} 51. Qxg6+ {[%clk 0:00:03.4]} 51...
Kf8 {[%clk 0:00:02]} 52. Qf5 {[%clk 0:00:03.4]} 52... Qc7 {[%clk 0:00:01.6]} 53.
Qd5 {[%clk 0:00:03.2]} 53... Bxf4 {[%clk 0:00:02.2]} 54. Qe4 {[%clk 0:00:02.7]}
54... Bh2 {[%clk 0:00:02.8]} 55. Kf3 {[%clk 0:00:03.4]} 55... Qg3+ {[%clk
0:00:02.9]} 56. Ke2 {[%clk 0:00:04.3]} 56... Bg1 {[%clk 0:00:03.5]} 57. Qf3
{[%clk 0:00:04.1]} 57... Qe5+ {[%clk 0:00:04]} 58. Kf1 {[%clk 0:00:03.4]} 58...
Qa1+ {[%clk 0:00:04.4]} 59. Kg2 {[%clk 0:00:02.9]} 59... f6 {[%clk 0:00:05.3]}
60. g5 {[%clk 0:00:02.8]} 60... Bd4 {[%clk 0:00:04.6]} 61. gxf6 {[%clk
0:00:02.8]} 61... Qb2+ {[%clk 0:00:05.4]} 62. Kh3 {[%clk 0:00:03.2]} 62... Bxf6
{[%clk 0:00:05.3]} 63. Qd5 {[%clk 0:00:03.8]} 63... Kg7 {[%clk 0:00:05.1]} 64.
Qf7+ {[%clk 0:00:03.5]} 64... Kh6 {[%clk 0:00:05.6]} 65. Qd5 {[%clk 0:00:03.4]}
65... Qc3+ {[%clk 0:00:05.6]} 66. Kg4 {[%clk 0:00:03.1]} 66... Qe3 {[%clk
0:00:04.7]} 67. Kf5 {[%clk 0:00:02.9]} 67... Qf2+ {[%clk 0:00:03.7]} 68. Ke6
{[%clk 0:00:03]} 68... a3 {[%clk 0:00:04.1]} 69. Kd7 {[%clk 0:00:03.1]} 69...
Qa7+ {[%clk 0:00:04]} 70. Ke6 {[%clk 0:00:03.2]} 70... Qe7+ {[%clk 0:00:04.2]}
71. Kf5 {[%clk 0:00:03.3]} 71... Qf8 {[%clk 0:00:03.2]} 72. Qe6 {[%clk
0:00:03.6]} 72... Kg7 {[%clk 0:00:02.9]} 73. Qd7+ {[%clk 0:00:03.6]} 73... Be7+
{[%clk 0:00:03.4]} 74. Ke6 {[%clk 0:00:03]} 74... Qf6+ {[%clk 0:00:04]} 75. Kd5
{[%clk 0:00:03.6]} 75... Kf8 {[%clk 0:00:04.1]} 76. Qe6 {[%clk 0:00:03.9]} 76...
Qg5+ {[%clk 0:00:04]} 77. Qe5 {[%clk 0:00:04.1]} 77... Qg8+ {[%clk 0:00:03.4]}
78. Qe6 {[%clk 0:00:04.3]} 78... Qg2+ {[%clk 0:00:03.3]} 79. Qe4 {[%clk
0:00:04.4]} 79... Qd2+ {[%clk 0:00:03.5]} 80. Qd4 {[%clk 0:00:04.6]} 80... Qa5+
{[%clk 0:00:03.7]} 81. Ke4 {[%clk 0:00:04.3]} 81... Qh5 {[%clk 0:00:03.8]} 82.
Qd5 {[%clk 0:00:04.5]} 82... Qg4+ {[%clk 0:00:03.5]} 83. Kd3 {[%clk 0:00:04.7]}
83... Qg6+ {[%clk 0:00:03.4]} 84. Qe4 {[%clk 0:00:04.3]} 84... Qg3+ {[%clk
0:00:03.6]} 85. Qe3 {[%clk 0:00:04.3]} 85... Qd6+ {[%clk 0:00:03.5]} 86. Qd4
{[%clk 0:00:04.5]} 86... Qh6 {[%clk 0:00:03.5]} 87. Qe4 {[%clk 0:00:03.9]} 87...
Bf6 {[%clk 0:00:03.8]} 88. Qe6 {[%clk 0:00:03.9]} 88... Qg6+ {[%clk 0:00:02.3]}
89. Ke2 {[%clk 0:00:03.3]} 89... Kg7 {[%clk 0:00:01.9]} 90. Qd7+ {[%clk
0:00:03.1]} 90... Kh6 {[%clk 0:00:02.4]} 91. Qd5 {[%clk 0:00:04]} 91... Qc2+
{[%clk 0:00:02.4]} 92. Kf3 {[%clk 0:00:03.9]} 92... Qc3+ {[%clk 0:00:02.9]} 93.
Ke4 {[%clk 0:00:04.5]} 93... Qb2 {[%clk 0:00:03.1]} 94. Kf5 {[%clk 0:00:04.7]}
94... Bg7 {[%clk 0:00:02.9]} 95. Ke6 {[%clk 0:00:05.6]} 95... Qf6+ {[%clk
0:00:02]} 96. Kd7 {[%clk 0:00:05.8]} 96... Qf4 {[%clk 0:00:02.8]} 97. Kc6 {[%clk
0:00:06.2]} 97... Bf6 {[%clk 0:00:03.3]} 98. Bb5 {[%clk 0:00:05.6]} 98... Qc1+
{[%clk 0:00:03.4]} 99. Bc4 {[%clk 0:00:06]} 99... Qb2 {[%clk 0:00:03.6]} 100.
Kd7 {[%clk 0:00:06.4]} 100... Qb6 {[%clk 0:00:03.7]} 101. Qc6 {[%clk 0:00:05.3]}
101... Qa7+ {[%clk 0:00:03.8]} 102. Ke6 {[%clk 0:00:05.1]} 102... Qe7+ {[%clk
0:00:03.9]} 103. Kf5 {[%clk 0:00:04.1]} 103... Kh5 {[%clk 0:00:02.9]} 104. Qf3+
{[%clk 0:00:03.6]} 104... Kh6 {[%clk 0:00:03.1]} 105. Qh3+ {[%clk 0:00:04.1]}
105... Bh4 {[%clk 0:00:03.5]} 106. Qd3 {[%clk 0:00:03.6]} 106... Qh7+ {[%clk
0:00:03.3]} 107. Ke6 {[%clk 0:00:03.5]} 107... Qg8+ {[%clk 0:00:03.2]} 108. Kd6
{[%clk 0:00:03.5]} 108... Qd8+ {[%clk 0:00:03.4]} 109. Ke5 {[%clk 0:00:03.6]}
109... Bf6+ {[%clk 0:00:03.6]} 110. Ke4 {[%clk 0:00:03.9]} 110... Qe7+ {[%clk
0:00:03.7]} 111. Kf3 {[%clk 0:00:04.4]} 111... Bg5 {[%clk 0:00:04]} 112. Qe4
{[%clk 0:00:04.7]} 112... Qf6+ {[%clk 0:00:04.4]} 113. Ke2 {[%clk 0:00:04.7]}
113... Qb2+ {[%clk 0:00:03.4]} 114. Kf3 {[%clk 0:00:04.1]} 114... Qc3+ {[%clk
0:00:03.9]} 115. Kg4 {[%clk 0:00:03.9]} 115... Qf6 {[%clk 0:00:03.6]} 116. Qe6
{[%clk 0:00:04.4]} 116... Bh4 {[%clk 0:00:02.9]} 117. Qxf6+ {[%clk 0:00:04.8]}
117... Bxf6 {[%clk 0:00:03.8]} 118. Kf5 {[%clk 0:00:05.5]} 1/2-1/2

[Event "*** Titled Tuesday Blitz"]
[Site "Chess.com"]
[Date "2020.05.05"]
[Round "2"]
[White "zmeeed67"]
[Black "bolence16"]
[Result "1-0"]
[WhiteElo "2400"]
[BlackElo "2143"]
[TimeControl "180+1"]
[EndTime "10:13:01 PDT"]
[Termination "zmeeed67 won by resignation"]

1. d4 {[%clk 0:03:00.9]} 1... Nf6 {[%clk 0:02:59.8]} 2. c4 {[%clk 0:03:01.2]}
2... g6 {[%clk 0:02:59.9]} 3. Nc3 {[%clk 0:03:01.6]} 3... d5 {[%clk 0:03:00.2]}
4. Bf4 {[%clk 0:03:01.4]} 4... Bg7 {[%clk 0:02:59.1]} 5. e3 {[%clk 0:03:01.9]}
5... O-O {[%clk 0:02:58.2]} 6. cxd5 {[%clk 0:03:01.8]} 6... Nxd5 {[%clk
0:02:58.1]} 7. Nxd5 {[%clk 0:03:02.7]} 7... Qxd5 {[%clk 0:02:57.9]} 8. Bxc7
{[%clk 0:03:03.6]} 8... Nc6 {[%clk 0:02:55.8]} 9. Ne2 {[%clk 0:03:03]} 9... e5
{[%clk 0:02:54.8]} 10. dxe5 {[%clk 0:03:03.6]} 10... Qxd1+ {[%clk 0:02:46.2]}
11. Rxd1 {[%clk 0:03:03.2]} 11... Nxe5 {[%clk 0:02:43.9]} 12. Nd4 {[%clk
0:02:55.7]} 12... Bg4 {[%clk 0:02:18.9]} 13. Be2 {[%clk 0:02:52.2]} 13... Bd7
{[%clk 0:02:08.1]} 14. Bxe5 {[%clk 0:02:44.4]} 14... Bxe5 {[%clk 0:02:07.7]} 15.
Nf3 {[%clk 0:02:44.9]} 1-0

[Event "*** Titled Tuesday Blitz"]
[Site "Chess.com"]
[Date "2020.05.05"]
[Round "2"]
[White "GM_Levan_Pantsulaia"]
[Black "Keks2017"]
[Result "1-0"]
[WhiteElo "2761"]
[BlackElo "2386"]
[TimeControl "180+1"]
[EndTime "10:13:06 PDT"]
[Termination "GM_Levan_Pantsulaia won by resignation"]

1. Nf3 {[%clk 0:03:00]} 1... Nf6 {[%clk 0:02:59.4]} 2. g3 {[%clk 0:03:00.1]}
2... g6 {[%clk 0:02:57.4]} 3. b3 {[%clk 0:02:59.9]} 3... Bg7 {[%clk 0:02:57.3]}
4. Bb2 {[%clk 0:03:00.8]} 4... O-O {[%clk 0:02:57.3]} 5. Bg2 {[%clk 0:03:01.2]}
5... d6 {[%clk 0:02:57.2]} 6. d4 {[%clk 0:03:01.4]} 6... a5 {[%clk 0:02:57.2]}
7. a3 {[%clk 0:02:54.4]} 7... a4 {[%clk 0:02:56.5]} 8. b4 {[%clk 0:02:54.8]}
8... d5 {[%clk 0:02:55.9]} 9. c4 {[%clk 0:02:43.9]} 9... c6 {[%clk 0:02:50.7]}
10. c5 {[%clk 0:02:42.2]} 10... Ne4 {[%clk 0:02:50.6]} 11. Nfd2 {[%clk
0:02:40.9]} 11... Nxd2 {[%clk 0:02:50.1]} 12. Qxd2 {[%clk 0:02:40.3]} 12... f5
{[%clk 0:02:50]} 13. Nc3 {[%clk 0:02:37.8]} 13... Nd7 {[%clk 0:02:48.8]} 14. Qd1
{[%clk 0:02:35]} 14... b5 {[%clk 0:02:48.1]} 15. Nxd5 {[%clk 0:02:34.5]} 15...
Bb7 {[%clk 0:02:42.2]} 16. Nf4 {[%clk 0:02:34.3]} 16... Rf6 {[%clk 0:02:35.1]}
17. d5 {[%clk 0:02:33.5]} 17... Rf7 {[%clk 0:02:33.6]} 18. Bxg7 {[%clk
0:02:30.2]} 1-0

[Event "*** Titled Tuesday Blitz"]
[Site "Chess.com"]
[Date "2020.05.05"]
[Round "2"]
[White "DLR7"]
[Black "saraswathii"]
[Result "1-0"]
[WhiteElo "2652"]
[BlackElo "2289"]
[TimeControl "180+1"]
[EndTime "10:13:07 PDT"]
[Termination "DLR7 won by resignation"]

1. e4 {[%clk 0:03:00.9]} 1... c5 {[%clk 0:02:58.2]} 2. Nf3 {[%clk 0:02:59.6]}
2... e6 {[%clk 0:02:58.4]} 3. b3 {[%clk 0:02:58.8]} 3... Nc6 {[%clk 0:02:55.8]}
4. Bb2 {[%clk 0:02:54.4]} 4... d5 {[%clk 0:02:54.8]} 5. exd5 {[%clk 0:02:54.4]}
5... exd5 {[%clk 0:02:54.1]} 6. Bb5 {[%clk 0:02:53.4]} 6... Bd7 {[%clk
0:02:53.5]} 7. O-O {[%clk 0:02:51.4]} 7... Nf6 {[%clk 0:02:52.7]} 8. Re1+ {[%clk
0:02:50.4]} 8... Be6 {[%clk 0:02:52.1]} 9. Bxc6+ {[%clk 0:02:41.6]} 9... bxc6
{[%clk 0:02:51.4]} 10. Ng5 {[%clk 0:02:42.1]} 10... Qd6 {[%clk 0:02:46.3]} 11.
Qe2 {[%clk 0:02:35]} 11... Kd7 {[%clk 0:02:45.6]} 12. Be5 {[%clk 0:02:32.2]}
12... Qe7 {[%clk 0:02:43.7]} 13. Qa6 {[%clk 0:02:32.5]} 13... Kd8 {[%clk
0:02:32.3]} 14. Qxc6 {[%clk 0:02:22.8]} 14... Rc8 {[%clk 0:02:31.1]} 15. Nxe6+
{[%clk 0:02:20.8]} 1-0

[Event "*** Titled Tuesday Blitz"]
[Site "Chess.com"]
[Date "2020.05.05"]
[Round "2"]
[White "bait_or_mate"]
[Black "Pechen_Yeltsina"]
[Result "1-0"]
[WhiteElo "2518"]
[BlackElo "2718"]
[TimeControl "180+1"]
[EndTime "10:13:11 PDT"]
[Termination "bait_or_mate won by checkmate"]

1. d4 {[%clk 0:03:00.9]} 1... g6 {[%clk 0:03:00.3]} 2. e4 {[%clk 0:03:00]} 2...
Bg7 {[%clk 0:03:00.6]} 3. Nc3 {[%clk 0:03:00.2]} 3... d6 {[%clk 0:03:01]} 4. Be3
{[%clk 0:03:00.2]} 4... a6 {[%clk 0:03:01.4]} 5. a4 {[%clk 0:02:59.8]} 5... Nd7
{[%clk 0:02:59.3]} 6. h3 {[%clk 0:02:59.2]} 6... e6 {[%clk 0:02:57.2]} 7. g4
{[%clk 0:02:59.3]} 7... h6 {[%clk 0:02:56.8]} 8. Bg2 {[%clk 0:02:59.6]} 8... Ne7
{[%clk 0:02:57]} 9. Nge2 {[%clk 0:03:00.1]} 9... b6 {[%clk 0:02:48.3]} 10. Qd2
{[%clk 0:03:00.1]} 10... Bb7 {[%clk 0:02:47.8]} 11. O-O {[%clk 0:03:00.6]} 11...
Qc8 {[%clk 0:02:42.2]} 12. Rad1 {[%clk 0:03:00.2]} 12... g5 {[%clk 0:02:29.1]}
13. f4 {[%clk 0:02:54.1]} 13... gxf4 {[%clk 0:02:30]} 14. Nxf4 {[%clk 0:02:55]}
14... Nf6 {[%clk 0:02:19.7]} 15. e5 {[%clk 0:02:53.2]} 15... dxe5 {[%clk
0:02:14.8]} 16. dxe5 {[%clk 0:02:51.4]} 16... Nh7 {[%clk 0:02:01.8]} 17. Bxb7
{[%clk 0:02:48.2]} 17... Qxb7 {[%clk 0:02:02.7]} 18. Qd7+ {[%clk 0:02:48.2]}
18... Kf8 {[%clk 0:02:01.1]} 19. Qd8+ {[%clk 0:02:49.1]} 19... Rxd8 {[%clk
0:02:00.5]} 20. Rxd8# {[%clk 0:02:50]} 1-0

[Event "*** Titled Tuesday Blitz"]
[Site "Chess.com"]
[Date "2020.05.05"]
[Round "2"]
[White "fridaywins"]
[Black "CarlssonLudvig"]
[Result "0-1"]
[WhiteElo "2232"]
[BlackElo "2462"]
[TimeControl "180+1"]
[EndTime "10:13:20 PDT"]
[Termination "CarlssonLudvig won by resignation"]

1. e4 {[%clk 0:03:00.9]} 1... e5 {[%clk 0:02:59.5]} 2. Nf3 {[%clk 0:03:00.4]}
2... Nc6 {[%clk 0:02:59.5]} 3. Bb5 {[%clk 0:03:00.9]} 3... a6 {[%clk 0:02:59.4]}
4. Ba4 {[%clk 0:03:01.2]} 4... Nf6 {[%clk 0:02:58.6]} 5. O-O {[%clk 0:03:00.5]}
5... Be7 {[%clk 0:02:58.7]} 6. Re1 {[%clk 0:03:00.8]} 6... b5 {[%clk 0:02:58.7]}
7. Bb3 {[%clk 0:03:01.2]} 7... O-O {[%clk 0:02:59.3]} 8. c3 {[%clk 0:03:01.7]}
8... d5 {[%clk 0:02:59.4]} 9. exd5 {[%clk 0:03:01.8]} 9... Nxd5 {[%clk
0:03:00.3]} 10. Nxe5 {[%clk 0:03:02.4]} 10... Nxe5 {[%clk 0:03:01.2]} 11. Rxe5
{[%clk 0:03:02.4]} 11... c6 {[%clk 0:03:01.7]} 12. d4 {[%clk 0:03:02.7]} 12...
Bd6 {[%clk 0:03:01.1]} 13. Re1 {[%clk 0:03:03.1]} 13... Qh4 {[%clk 0:03:00.8]}
14. g3 {[%clk 0:03:03.5]} 14... Qh3 {[%clk 0:03:01.2]} 15. Be3 {[%clk
0:03:03.4]} 15... Ra7 {[%clk 0:03:01.1]} 16. Bxd5 {[%clk 0:02:51.5]} 16... cxd5
{[%clk 0:03:00]} 17. Qf3 {[%clk 0:02:52.4]} 17... Re7 {[%clk 0:02:59.7]} 18. Nd2
{[%clk 0:02:48.8]} 18... Rfe8 {[%clk 0:02:58.4]} 19. Qg2 {[%clk 0:02:39]} 19...
Qh5 {[%clk 0:02:57.8]} 20. Nf1 {[%clk 0:02:38.1]} 20... Bh3 {[%clk 0:02:56]} 21.
Qh1 {[%clk 0:02:34]} 21... Qf5 {[%clk 0:02:46.5]} 22. Re2 {[%clk 0:02:13.7]}
22... Bg4 {[%clk 0:02:42.7]} 0-1

[Event "*** Titled Tuesday Blitz"]
[Site "Chess.com"]
[Date "2020.05.05"]
[Round "2"]
[White "MITerryble"]
[Black "RAU4ever"]
[Result "1-0"]
[WhiteElo "2826"]
[BlackElo "2341"]
[TimeControl "180+1"]
[EndTime "10:13:24 PDT"]
[Termination "MITerryble won by resignation"]

1. e4 {[%clk 0:03:00.9]} 1... c5 {[%clk 0:02:59]} 2. Nf3 {[%clk 0:03:00.9]} 2...
d6 {[%clk 0:02:59.4]} 3. Bb5+ {[%clk 0:03:00.7]} 3... Bd7 {[%clk 0:02:58.9]} 4.
Bxd7+ {[%clk 0:03:00.8]} 4... Qxd7 {[%clk 0:02:59.8]} 5. O-O {[%clk 0:03:01]}
5... Nc6 {[%clk 0:03:00.3]} 6. c3 {[%clk 0:03:00.9]} 6... Nf6 {[%clk 0:02:57.2]}
7. d4 {[%clk 0:02:59.6]} 7... cxd4 {[%clk 0:02:53.5]} 8. cxd4 {[%clk 0:03:00.5]}
8... d5 {[%clk 0:02:53.7]} 9. e5 {[%clk 0:02:57.8]} 9... Ne4 {[%clk 0:02:53.6]}
10. Ne1 {[%clk 0:02:58.4]} 10... f6 {[%clk 0:02:50.2]} 11. Nd3 {[%clk
0:02:58.9]} 11... e6 {[%clk 0:02:18.2]} 12. Be3 {[%clk 0:02:53.9]} 12... Qf7
{[%clk 0:01:46.5]} 13. f3 {[%clk 0:02:43.2]} 13... Ng5 {[%clk 0:01:46.2]} 14. h4
{[%clk 0:02:42.7]} 1-0

[Event "*** Titled Tuesday Blitz"]
[Site "Chess.com"]
[Date "2020.05.05"]
[Round "2"]
[White "chiwii"]
[Black "Tejas_Rama"]
[Result "1/2-1/2"]
[WhiteElo "2258"]
[BlackElo "2464"]
[TimeControl "180+1"]
[EndTime "10:13:50 PDT"]
[Termination "Game drawn by repetition"]

1. e4 {[%clk 0:03:00.9]} 1... c5 {[%clk 0:02:44.5]} 2. Nf3 {[%clk 0:02:59.3]}
2... d6 {[%clk 0:02:40]} 3. d4 {[%clk 0:02:59.4]} 3... cxd4 {[%clk 0:02:38.5]}
4. Nxd4 {[%clk 0:02:59.7]} 4... Nf6 {[%clk 0:02:34.9]} 5. Nc3 {[%clk 0:02:59.8]}
5... a6 {[%clk 0:02:31.1]} 6. Be2 {[%clk 0:02:59.6]} 6... e5 {[%clk 0:02:27.4]}
7. Nf3 {[%clk 0:02:59]} 7... Be7 {[%clk 0:02:25.4]} 8. Bg5 {[%clk 0:02:58.4]}
8... O-O {[%clk 0:02:18.7]} 9. Bxf6 {[%clk 0:02:58.5]} 9... Bxf6 {[%clk
0:02:15.3]} 10. O-O {[%clk 0:02:58]} 10... Be6 {[%clk 0:02:11]} 11. Nd5 {[%clk
0:02:58.1]} 11... Nd7 {[%clk 0:02:08.5]} 12. Bc4 {[%clk 0:02:57.5]} 12... b5
{[%clk 0:02:06.2]} 13. Bb3 {[%clk 0:02:57.5]} 13... Rc8 {[%clk 0:01:58.8]} 14.
c3 {[%clk 0:02:56.2]} 14... Nc5 {[%clk 0:01:47.1]} 15. Bc2 {[%clk 0:02:56.3]}
15... g6 {[%clk 0:01:42.8]} 16. Nxf6+ {[%clk 0:02:55.3]} 16... Qxf6 {[%clk
0:01:43.7]} 17. Qxd6 {[%clk 0:02:55.3]} 17... Rfd8 {[%clk 0:01:42.8]} 18. Qxe5
{[%clk 0:02:55.4]} 18... Qxe5 {[%clk 0:01:43.4]} 19. Nxe5 {[%clk 0:02:56.3]}
19... Rd2 {[%clk 0:01:43.9]} 20. Rac1 {[%clk 0:02:52.5]} 20... Bxa2 {[%clk
0:01:41.3]} 21. Nf3 {[%clk 0:02:51.6]} 21... Re2 {[%clk 0:01:35.4]} 22. Nd4
{[%clk 0:02:51.2]} 22... Rd2 {[%clk 0:01:31.8]} 23. Nf3 {[%clk 0:02:51.4]} 23...
Re2 {[%clk 0:01:28.3]} 24. Nd4 {[%clk 0:02:51.2]} 24... Rd2 {[%clk 0:01:28.6]}
25. Nf3 {[%clk 0:02:51.2]} 1/2-1/2

[Event "*** Titled Tuesday Blitz"]
[Site "Chess.com"]
[Date "2020.05.05"]
[Round "2"]
[White "narutosmith"]
[Black "doons21"]
[Result "0-1"]
[WhiteElo "2268"]
[BlackElo "2617"]
[TimeControl "180+1"]
[EndTime "10:13:53 PDT"]
[Termination "doons21 won by resignation"]

1. c4 {[%clk 0:03:00.9]} 1... Nf6 {[%clk 0:02:59.6]} 2. Nc3 {[%clk 0:03:01]}
2... g6 {[%clk 0:02:58]} 3. g3 {[%clk 0:03:00.9]} 3... Bg7 {[%clk 0:02:58.3]} 4.
Bg2 {[%clk 0:03:01.6]} 4... O-O {[%clk 0:02:58.8]} 5. Rb1 {[%clk 0:03:02.1]}
5... a5 {[%clk 0:02:44.1]} 6. a3 {[%clk 0:03:01.9]} 6... c6 {[%clk 0:02:39.8]}
7. b4 {[%clk 0:03:01]} 7... axb4 {[%clk 0:02:40]} 8. axb4 {[%clk 0:03:01.9]}
8... d5 {[%clk 0:02:40.5]} 9. d3 {[%clk 0:02:33.7]} 9... Bf5 {[%clk 0:02:26.8]}
10. cxd5 {[%clk 0:02:25.5]} 10... cxd5 {[%clk 0:02:24.6]} 11. Qb3 {[%clk
0:02:26.1]} 11... d4 {[%clk 0:02:08.7]} 12. Bxb7 {[%clk 0:02:19]} 12... Ra7
{[%clk 0:02:01.2]} 0-1

[Event "*** Titled Tuesday Blitz"]
[Site "Chess.com"]
[Date "2020.05.05"]
[Round "2"]
[White "LogoCzar"]
[Black "reniite"]
[Result "1-0"]
[WhiteElo "2354"]
[BlackElo "1951"]
[TimeControl "180+1"]
[EndTime "10:14:05 PDT"]
[Termination "LogoCzar won by resignation"]

1. e4 {[%clk 0:03:00.9]} 1... e5 {[%clk 0:02:53.8]} 2. Nf3 {[%clk 0:03:01]} 2...
Nf6 {[%clk 0:02:53.3]} 3. Nxe5 {[%clk 0:03:01]} 3... d6 {[%clk 0:02:53.3]} 4.
Nf3 {[%clk 0:03:01.4]} 4... Nxe4 {[%clk 0:02:53.4]} 5. d4 {[%clk 0:03:01.8]}
5... d5 {[%clk 0:02:53.5]} 6. Bd3 {[%clk 0:03:01.8]} 6... Bd6 {[%clk 0:02:53.8]}
7. O-O {[%clk 0:03:01.9]} 7... O-O {[%clk 0:02:54.2]} 8. Nbd2 {[%clk 0:03:02.2]}
8... Bf5 {[%clk 0:02:47.9]} 9. Re1 {[%clk 0:03:01.2]} 9... Re8 {[%clk
0:02:46.3]} 10. h3 {[%clk 0:02:46.4]} 10... Bg6 {[%clk 0:02:43]} 11. Nf1 {[%clk
0:02:41.2]} 11... Nc6 {[%clk 0:02:37.6]} 12. c3 {[%clk 0:02:40.5]} 12... f5
{[%clk 0:02:34.5]} 13. Qb3 {[%clk 0:02:39.1]} 13... Kh8 {[%clk 0:02:30.2]} 14.
Qxb7 {[%clk 0:02:32.1]} 14... Qd7 {[%clk 0:02:26.8]} 15. Bb5 {[%clk 0:02:30]}
15... Nxf2 {[%clk 0:02:02.5]} 16. Qxc6 {[%clk 0:02:17.6]} 16... Nxh3+ {[%clk
0:01:57.5]} 17. gxh3 {[%clk 0:02:13.3]} 17... Qxc6 {[%clk 0:01:55.7]} 18. Bxc6
{[%clk 0:02:11.8]} 18... Rxe1 {[%clk 0:01:56.6]} 19. Nxe1 {[%clk 0:02:10.9]}
19... Rb8 {[%clk 0:01:52.4]} 20. Bxd5 {[%clk 0:02:07.6]} 1-0

[Event "*** Titled Tuesday Blitz"]
[Site "Chess.com"]
[Date "2020.05.05"]
[Round "2"]
[White "neurisdr"]
[Black "Flawless_Fighter"]
[Result "1-0"]
[WhiteElo "2798"]
[BlackElo "2528"]
[TimeControl "180+1"]
[EndTime "10:14:06 PDT"]
[Termination "neurisdr won by resignation"]

1. e4 {[%clk 0:03:00.9]} 1... e6 {[%clk 0:02:59]} 2. d4 {[%clk 0:02:59.9]} 2...
d5 {[%clk 0:02:59.9]} 3. Nc3 {[%clk 0:02:57.1]} 3... Nf6 {[%clk 0:03:00.3]} 4.
e5 {[%clk 0:02:54.3]} 4... Nfd7 {[%clk 0:03:00.4]} 5. Nce2 {[%clk 0:02:54.8]}
5... c5 {[%clk 0:03:00.1]} 6. c3 {[%clk 0:02:54.2]} 6... Nc6 {[%clk 0:03:00.7]}
7. Nf3 {[%clk 0:02:51.7]} 7... Be7 {[%clk 0:02:58.9]} 8. h4 {[%clk 0:02:49.7]}
8... h6 {[%clk 0:02:56.2]} 9. Nf4 {[%clk 0:02:48.1]} 9... b6 {[%clk 0:02:42.3]}
10. Bd3 {[%clk 0:02:46.3]} 10... a5 {[%clk 0:02:41.6]} 11. Nh5 {[%clk
0:02:43.4]} 11... O-O {[%clk 0:02:24]} 12. Rh3 {[%clk 0:02:39.9]} 12... Kh8
{[%clk 0:01:52.7]} 13. Bxh6 {[%clk 0:02:35.5]} 13... Rg8 {[%clk 0:01:38.7]} 14.
Qd2 {[%clk 0:02:30.5]} 14... Nf8 {[%clk 0:01:31.4]} 15. Bxg7+ {[%clk 0:02:26.5]}
15... Rxg7 {[%clk 0:01:31.2]} 16. Qh6+ {[%clk 0:02:26.1]} 16... Rh7 {[%clk
0:01:31.5]} 17. Bxh7 {[%clk 0:02:25.4]} 1-0